[Event "Romanian Superliga 2024"]
[Site "Mamaia"]
[Date "2024.10.01"]
[Round "4.11"]
[White "Coca, Cristi-Iulian"]
[Black "Ilinca, Felix-Antonio"]
[Result "0-1"]
[ECO "B22"]
[WhiteElo "2233"]
[BlackElo "2417"]
[Annotator "TA"]
[PlyCount "140"]
[EventDate "2024.09.26"]
[EventType "team-tourn"]
[EventCountry "ROU"]
[SourceTitle "playchess.com"]
[Source "ChessBase"]
[SourceQuality "1"]
[TimeControl "40/5400+30:1800+30"]

{[%evp 16,140,25,4,62,0,0,0,44,44,48,33,60,34,83,0,33,30,31,53,103,0,29,36,29,35,20,0,55,16,41,-43,-37,-47,-18,-46,-28,-39,-28,-40,-18,-81,-32,-87,-68,-85,-91,-77,-43,-62,-59,-72,-41,-57,-38,-31,-38,-140,-132,-279,-131,-135,-135,-122,-135,-116,-117,-127,-143,-293,-162,-323,-323,-425,-422,-412,-412,-387,-387,-354,-350,-410,-391,-470,-450,-670,-696,-699,-589,-571,-609,-692,-691,-612,-607,-1238,-1117,-983,-921,-848,-830,-6619,-6584,-6423,-5823,-5823,-5823,-5961,-2118,-29977,-29978,-29978,-29979,-29979,-29980,-29979,-29981,-29980,-29981,-29985,-29986,-29986,-29987,-29987,-29988,-29988,-29988]} 1. e4 {[%emt 0:00:03][%cal Be2e4,Be4e5][%mdl 32] EV=13.53} c5 {[%emt 0:00:26]} 2. c3 {[%emt 0:00:05]} Nf6 {[%emt 0:00:22]} 3. e5 {[%emt 0:00:05]} Nd5 {[%emt 0:00:35]} 4. Nf3 {[%emt 0:00:06]} d6 {[%emt 0:00:34]} 5. exd6 {[%emt 0:00:07]} e6 {[%emt 0:00:58]} 6. g3 {[%emt 0:00:05]} Bxd6 {[%emt 0:01:02]} 7. Bg2 {[%emt 0:00:05]} O-O $1 {[%emt 0:01:19] De hoofdvariant 7...0-0 scoort beter dan 7...Nc6.} 8. O-O {[%emt 0:00:05]} Nc6 {[%emt 0:04:33]} 9. d4 {[%emt 0:00:41]} Qc7 {[%emt 0:02:55] B22: Siciliaans: 2 c3.} (9... cxd4 $11 10. c4 Nf6 11. Nxd4 Nxd4 12. Qxd4 e5) 10. Na3 {[%emt 0:15:18] Fout (0.6)} (10. c4 $1 $14 Nf6 11. Bg5) 10... a6 $11 {[%emt 0:02:13] OK} 11. Nc4 {[%emt 0:01:34] Sterke dreiging met Nxd6. OK} b5 {[%emt 0:08:59] Onnauwkeurig. De stelling is in evenwicht.} 12. Nxd6 {[%emt 0:01:07] OK} Qxd6 {[%emt 0:01:38]} 13. a4 $146 {[%emt 0:11:08]} ({Predecessor:} 13. dxc5 Qxc5 14. Ng5 Bb7 15. Qc2 Nf6 16. Be3 Qe7 17. Rfd1 Rfd8 18. Ne4 Nxe4 19. Bxe4 {1-0 Chernyuk,M (2292)-Soloviov,V (1878) Urals-ch 72nd 2014 (1)}) 13... Bb7 {[%emt 0:03:48] Beste (Gemakkelijk)} 14. dxc5 {[%emt 0:01:30] OK} Qxc5 {[%emt 0:02:19] Onnauwkeurig} 15. Qe2 {[%emt 0:00:44] Fout (0.8)} (15. Ng5 $16) 15... h6 {[%emt 0:05:33] Onnauwkeurig} 16. Nd2 {[%emt 0:05:35][%cal Bf3d2,Bd2b3,Bb3d4][%mdl 32] EV=15.93} Rfd8 {[%emt 0:05:20]} 17. Nb3 {[%emt 0:05:16] Ontwijkt Na5} Qb6 {[%emt 0:08:09] [#] Fout (0.5)} (17... Qc4 $14 18. Qxc4 bxc4) 18. Rd1 {[%emt 0:10:01] Fout (1.0)} (18. Be3 $1 $16 {[%cal Re3b6]} Qc7 (18... Nxe3 19. Qxe3 Qxe3 20. fxe3 $14) 19. Nc5 (19. axb5 axb5 20. Nc5 Nxe3 $16)) 18... Nce7 {[%emt 0:07:07] Onnauwkeurig} 19. axb5 {[%emt 0:05:42] OK} axb5 {[%emt 0:00:46]} 20. Rxa8 {[%emt 0:00:16] OK} Rxa8 {[%emt 0:04:00]} 21. Nd4 {[%emt 0:02:03] OK} {Zwart zou moeten proberen} Ba6 {[%emt 0:02:14] Fout (0.6)} (21... Nc7 $11) 22. Be3 {[%emt 0:12:07] Onnauwkeurig} b4 {[%emt 0:05:43]} {Wit zou moeten spelen} 23. Qe1 {[%emt 0:02:31] Fout (0.8)} (23. c4 $14 Nxe3 24. Qxe3) 23... Nxe3 $15 {[%emt 0:06:18] OK} 24. Qxe3 {[%emt 0:00:25]} Rd8 {[%emt 0:02:24] Onnauwkeurig} 25. Ra1 {[%emt 0:03:58][%cal Od4c6] [#] Dreigt te winnen met Nc6! OK} bxc3 {[%emt 0:01:57] OK} 26. bxc3 {[%emt 0:00:11][%cal Od4f5] En nu zou Nf5! winnen.} Qd6 {[%emt 0:03:22] OK} 27. Be4 {[%emt 0:04:09][%cal Od4c6]} Bc4 {[%emt 0:01:49] OK} 28. Bc2 {[%emt 0:09:26] blijft gelijk. Fout (0.6)} (28. Nc2 $11) 28... Nd5 {[%emt 0:02:03] Fout (0.5)} (28... Bd5 $17) 29. Qf3 {[%emt 0:00:14] Fout (0.6)} (29. Qe4 $15 g6 (29... Nxc3 30. Qh7+ Kf8 31. Ra7 $16) 30. Nxe6) 29... Qb6 {[%emt 0:02:37]} ({Ga niet voor} 29... Nxc3 $2 30. Qxc3 Bd5 (30... Qxd4 $2 {verliest.} 31. Qxd4 Bd5 32. Qd3 $18) 31. Rd1 $18) 30. Rb1 {[%emt 0:02:00] Tegen Qb2. OK} Qa6 {[%emt 0:00:22]} 31. h4 {[%emt 0:01:51] OK} Qa2 {[%emt 0:05:39] Onnauwkeurig} 32. Qe4 {[%emt 0:01:42]} Nf6 {[%emt 0:00:43] Afleidend Qh7+. Actief tegenspel! OK} ({Sterker dan} 32... Nxc3 33. Qh7+ Kf8 34. Qh8+ Ke7 35. Nc6+ (35. Qxg7 Nxb1 36. Nc6+ Kd7 $17) 35... Kd6 36. Qxd8+ Kc5 37. Qd4+ (37. Qb6+ Kd6) 37... Kxc6 38. Rb6+ (38. Qxc3 g5 $18) 38... Kc7 39. Qd6+ Kc8 40. Rb8#) 33. Qf4 {[%emt 0:01:04]} Bd5 {[%emt 0:00:42] Onnauwkeurig} 34. Rb8 {[%emt 0:01:56]} Qa1+ {[%emt 0:00:56]} 35. Bb1 {[%emt 0:00:06] Beste (Gemakkelijk)} Re8 {[%emt 0:01:56] OK} {Wit zou moeten proberen} 36. Kh2 {[%emt 0:02:42] Fout (1.0)} (36. Rxe8+ $15 Nxe8 37. Qb8) 36... Qxc3 $40 {[%emt 0:02:44][%mdl 128] Zwart is uit op bloed. Beste (Gemakkelijk)} 37. Rxe8+ {[%emt 0:02:17]} Nxe8 {[%emt 0:00:05] Onnauwkeurig} 38. Be4 {[%emt 0:00:29] Beste} Bxe4 {[%emt 0:01:09] OK} ({Zwakker is} 38... Qxd4 39. Bh7+ Kxh7 40. Qxd4 $18) 39. Qxe4 {[%emt 0:00:02][%mdl 4096] Eindspel. KQN-KQN} Nf6 {[%emt 0:00:06] OK} 40. Qa8+ {[%emt 0:00:00] OK} Kh7 {[%emt 0:00:00] Beste (Gemakkelijk)} 41. Ne2 {[%emt 0:03:59]} Qd3 {[%emt 0:06:10] OK} 42. Qa2 {[%emt 0:07:41] Kan een voordeligere keuze zijn. Fout (1.5)} (42. Nf4 $17 Qf5 43. Qa3) 42... Qf3 {[%emt 0:06:43] Fout (1.3)} (42... Ne4 $142 43. Nf4 Qf1) 43. Qc2+ $2 {[%emt 0:01:59] Is een meer strategische zet. Fout (1.6)} (43. Nf4) 43... Ne4 $19 {[%emt 0:00:41] Beste (Gemakkelijk)} 44. Nc3 {[%emt 0:03:16][%cal Rc3e4] Onnauwkeurig} Qxf2+ {[%emt 0:01:11] Beste (Gemakkelijk)} ({Minder sterk is} 44... Qxc3 45. Qxe4+ g6 46. h5 $15) 45. Qxf2 {[%emt 0:00:03]} Nxf2 {[%emt 0:00:07] KN-KN} 46. Kg2 {[%emt 0:00:03] OK} Ng4 {[%emt 0:00:35] OK} 47. Ne4 {[%emt 0:00:27]} h5 {[%emt 0:00:22]} 48. Ng5+ {[%emt 0:00:17]} Kg6 {[%emt 0:00:07] OK} 49. Kf3 {[%emt 0:00:07]} Kf5 {[%emt 0:00:42] OK} 50. Kg2 {[%emt 0:01:20] Fout (2.2)} (50. Ne4 $142) 50... f6 {[%emt 0:00:14] Beste} 51. Nf7 {[%emt 0:00:26]} e5 {[%emt 0:00:11] ...Ke4 is de sterke dreiging.} 52. Nd6+ {[%emt 0:00:05]} Ke6 {[%emt 0:00:07]} 53. Ne8 {[%emt 0:00:03]} g6 {[%emt 0:00:21] Hoopt vervolgens op ...Kd7. OK} 54. Nc7+ {[%emt 0:00:08]} Kd6 {[%emt 0:00:40]} 55. Nb5+ {[%emt 0:00:08]} Kd5 {[%emt 0:01:10]} 56. Nc7+ {[%emt 0:00:07]} Ke4 {[%emt 0:01:10] ...Kd3 zou dodelijk zijn.} 57. Ne6 {[%emt 0:00:06]} Kd3 {[%emt 0:06:32]} 58. Nf8 {[%emt 0:00:28]} e4 {[%emt 0:00:10]} 59. Nxg6 {[%emt 0:00:16]} e3 {[%emt 0:00:04]} 60. Nf4+ {[%emt 0:01:03]} Kd2 {[%emt 0:00:05] ( -> ...e2)} 61. Kf3 {[%emt 0:01:38]} Nh2+ {[%emt 0:01:36]} (61... f5 $142 62. Ng2 e2) 62. Kg2 {[%emt 0:00:36]} e2 {[%emt 0:00:15] Zwart zet mat.} 63. Nxe2 {[%emt 0:00:14]} Kxe2 {[%emt 0:00:05]} 64. Kxh2 {[%emt 0:00:08] KPP-KPP} Kf3 {[%emt 0:00:05]} 65. Kh3 {[%emt 0:00:18]} f5 {[%emt 0:00:05]} 66. Kh2 {[%emt 0:00:05]} Kf2 {[%emt 0:00:05]} 67. Kh1 {[%emt 0:00:08]} Kxg3 {[%emt 0:00:06]} 68. Kg1 {[%emt 0:00:04]} Kxh4 {[%emt 0:00:10]} 69. Kg2 {[%emt 0:00:07]} Kg4 {[%emt 0:00:06]} 70. Kh2 {[%emt 0:00:04]} Kf3 {[%emt 0:00:06] Blunder waarde: Wit=0.52/Zwart=0.19 (erg precies) .  Fout:        	Wit=10     	Zwart=4      Onnauwkeurig:    	Wit=2      	Zwart=8      OK:         	Wit=11     	Zwart=14     Beste:        	Wit=2      	Zwart=6} 0-1

[Event "Romanian Superliga 2024"]
[Site "Mamaia"]
[Date "2024.10.01"]
[Round "4.12"]
[White "Magold, Filip"]
[Black "Dobre, Claudiu-Cristian"]
[Result "1-0"]
[ECO "D46"]
[WhiteElo "2406"]
[BlackElo "2294"]
[Annotator "RC"]
[PlyCount "73"]
[EventDate "2024.09.26"]
[EventType "team-tourn"]
[EventCountry "ROU"]
[SourceTitle "playchess.com"]
[Source "ChessBase"]
[SourceQuality "1"]
[TimeControl "40/5400+30:1800+30"]

1. d4 {[%emt 0:00:26]} d5 {[%emt 0:00:06]} 2. c4 {[%emt 0:00:02]} c6 {[%emt 0:00:07]} 3. Nc3 {[%emt 0:00:02]} Nf6 {[%emt 0:00:10]} 4. Nf3 {[%emt 0:00:06]} e6 {[%emt 0:00:04]} 5. e3 {[%emt 0:00:01]} Nbd7 {[%emt 0:00:07]} 6. Qc2 {[%emt 0:00:01]} Bd6 {[%emt 0:00:13]} 7. Bd3 {[%emt 0:00:04]} O-O {[%emt 0:00:55]} 8. O-O {[%emt 0:00:06]} dxc4 {[%emt 0:03:10]} 9. Bxc4 {[%emt 0:00:22]} b5 {[%emt 0:02:36]} 10. Be2 {[%emt 0:00:06]} Bb7 {[%emt 0:01:54]} 11. e4 {[%emt 0:00:06]} e5 {[%emt 0:02:39]} 12. dxe5 {[%emt 0:00:07]} Nxe5 {[%emt 0:00:09]} 13. Nh4 {[%emt 0:00:07]} b4 {[%emt 0:35:46]} 14. Nf5 {[%emt 0:00:33]} bxc3 {[%emt 0:00:45]} 15. Rd1 {[%emt 0:00:03]} Ne8 {[%emt 0:10:02]} 16. Qxc3 {[%emt 0:00:05]} Qf6 {[%emt 0:13:19]} 17. f4 {[%emt 0:00:59]} Bc7 {[%emt 0:02:09]} 18. fxe5 {[%emt 0:01:59]} Qxe5 {[%emt 0:05:23]} 19. Qxe5 {[%emt 0:02:05]} Bxe5 {[%emt 0:00:05]} 20. Be3 {[%emt 0:00:05]} Nf6 {[%emt 0:10:24]} 21. Bf3 {[%emt 0:02:32]} a5 {[%emt 0:03:38]} 22. g4 {[%emt 0:09:54]} h6 {[%emt 0:01:59]} 23. h4 {[%emt 0:00:06]} Rfd8 {[%emt 0:02:39]} 24. g5 {[%emt 0:04:19]} hxg5 {[%emt 0:00:09]} 25. Ne7+ {[%emt 0:03:05]} Kh7 {[%emt 0:02:01]} 26. hxg5 {[%emt 0:00:05]} Ng8 {[%emt 0:00:05]} 27. g6+ {[%emt 0:04:04]} fxg6 {[%emt 0:01:00]} 28. Nxg8 {[%emt 0:00:05]} Kxg8 {[%emt 0:00:08]} 29. Bg4 {[%emt 0:00:04]} Re8 {[%emt 0:00:32]} 30. Bd7 {[%emt 0:00:05]} Red8 {[%emt 0:02:30]} 31. Bb6 {[%emt 0:02:32]} Rf8 {[%emt 0:00:36]} 32. Be6+ {[%emt 0:00:12]} Kh7 {[%emt 0:00:04]} 33. Kg2 {[%emt 0:04:35]} Kh6 {[%emt 0:00:53]} 34. Bc5 {[%emt 0:01:51]} Rf6 {[%emt 0:00:41]} 35. Be7 {[%emt 0:11:00]} g5 {[%emt 0:00:28]} 36. Bxf6 {[%emt 0:00:16]} gxf6 {[%emt 0:00:32]} 37. Rd7 {[%emt 0:00:05]} 1-0

[Event "Romanian Superliga 2024"]
[Site "Mamaia"]
[Date "2024.10.01"]
[Round "4.13"]
[White "Shevchenko, Kirill"]
[Black "Lashkin, Jegor"]
[Result "1-0"]
[ECO "B90"]
[WhiteElo "2673"]
[BlackElo "2472"]
[Annotator "TA"]
[PlyCount "81"]
[EventDate "2024.09.26"]
[EventType "team-tourn"]
[EventCountry "ROU"]
[SourceTitle "playchess.com"]
[Source "ChessBase"]
[SourceQuality "1"]
[TimeControl "40/5400+30:1800+30"]

{[%evp 15,81,12,23,20,21,0,53,40,33,41,42,56,59,50,56,38,39,34,41,33,52,45,60,42,53,42,60,59,70,53,96,74,88,87,81,93,129,126,112,112,137,145,143,126,103,117,128,100,121,130,140,64,53,60,66,44,39,55,41,47,252,262,368,354,350,280,756,753]} 1. e4 {[%emt 0:00:03]} c5 {[%emt 0:00:11]} 2. Nf3 {[%emt 0:00:05]} d6 {[%emt 0:00:05]} 3. d4 {[%emt 0:00:04]} cxd4 {[%emt 0:00:04]} 4. Nxd4 {[%emt 0:00:03]} Nf6 {[%emt 0:00:06]} 5. Nc3 {[%emt 0:00:02]} a6 {[%emt 0:00:04]} 6. Be3 {[%emt 0:00:04]} e5 {[%emt 0:00:04]} 7. Nb3 {[%emt 0:00:02]} Be6 {[%emt 0:00:08]} 8. f3 {[%emt 0:00:04][%cal Bf2f3,Bf3f4,Bf4f5][%mdl 32]} h5 {[%emt 0:00:08]} 9. Be2 {[%emt 0:00:04]} Nbd7 {[%emt 0:02:04]} 10. f4 {[%emt 0:03:09]} Rc8 {[%emt 0:11:26]} (10... g6 $11) 11. f5 $14 {[%emt 0:01:47] White is slightly better.} Bc4 {[%emt 0:03:52]} 12. Bxc4 {[%emt 0:00:48]} Rxc4 {[%emt 0:00:05]} 13. Qd3 {[%emt 0:00:02]} Rc8 {[%emt 0:07:32]} 14. O-O-O {[%emt 0:04:48]} Qc7 {[%emt 0:03:28]} 15. Kb1 {[%emt 0:02:58]} Be7 {[%emt 0:07:47][%cal Bf8e7,Be7d8,Bd8b6,Bb6a7][%mdl 32]} 16. h3 {[%emt 0:03:21][%cal Og2g4]} Qc4 {[%emt 0:06:08]} 17. Rhe1 {[%emt 0:08:27]} b5 {[%emt 0:03:30]} 18. a3 {[%emt 0:08:34]} h4 {[%emt 0:05:47]} 19. Bf2 {[%emt 0:10:14]} Qxd3 {[%emt 0:02:07]} 20. cxd3 {[%emt 0:10:54]} Bd8 {[%emt 0:10:00]} 21. d4 {[%emt 0:14:46]} Bb6 {[%emt 0:01:48]} 22. Re2 {[%emt 0:01:14]} Rh6 {[%emt 0:14:20]} 23. a4 {[%emt 0:08:05]} exd4 {[%emt 0:06:11]} 24. Nxd4 {[%emt 0:06:34]} bxa4 {[%emt 0:00:55]} 25. Nxa4 {[%emt 0:00:31]} Ba7 {[%emt 0:01:30]} 26. Nc3 {[%emt 0:00:38][%cal Od4b5]} Bc5 {[%emt 0:03:53]} 27. Be3 {[%emt 0:01:38]} Rh5 {[%emt 0:00:54]} 28. Bf4 {[%emt 0:00:41]} Ne5 {[%emt 0:04:16]} 29. Bxe5 {[%emt 0:01:59]} dxe5 {[%emt 0:00:05]} 30. Nf3 {[%emt 0:00:01]} Nd7 {[%emt 0:03:52]} 31. Nd5 {[%emt 0:00:21]} Be7 {[%emt 0:01:07]} 32. Red2 {[%emt 0:02:22] Black must now prevent Nxe7.} Bd8 {[%emt 0:00:26] [#]} 33. Nf4 {[%emt 0:02:35]} exf4 {[%emt 0:00:07]} 34. Rxd7 {[%emt 0:00:01] Threatens to win with Ne5.} Rh6 {[%emt 0:01:28]} 35. Ne5 {[%emt 0:01:36] White has more active pieces.} Rb6 $1 {[%emt 0:00:31]} 36. Nxf7 {[%emt 0:05:48]} Be7 {[%emt 0:00:13]} 37. Ne5 $36 {[%emt 0:00:19][%mdl 2048] [#] And now Ng6 would win. Black is under pressure.} Rb4 $2 {[%emt 0:02:10] This move loses the game for Black.} ({Black should play} 37... Bf6 $14 38. R7d5 Rb4) 38. R1d4 $18 {[%emt 0:02:18]} Rb3 {[%emt 0:00:35]} (38... Rb5 $142 39. Ng6 Bf6) 39. Nd3 {[%emt 0:00:36]} a5 {[%emt 0:00:30][%cal Oa5a4]} 40. R7d5 {[%emt 0:00:00]} (40. Nxf4 Bf6 41. Rd2 Bc3 $11) 40... Rcc3 $2 {[%emt 0:00:00]} (40... Ra8 41. Ra4 (41. Nxf4 a4 $16) 41... Rab8) 41. Ka2 {[%emt 0:04:02] Weighted Error Value: White=0.11 (very precise) /Black=0.25 (precise) .  Loses game:     	---       	Black=1      Mistake:       	White=1     	Black=3      Inaccurate:     	---       	Black=2      OK:         	White=15    	Black=7      Best:        	White=1     	Black=1      Strong:       	---       	Black=1} 1-0

[Event "Romanian Superliga 2024"]
[Site "Mamaia"]
[Date "2024.10.01"]
[Round "4.14"]
[White "Ogleznev, Alexandr"]
[Black "Motylev, Alexander"]
[Result "1/2-1/2"]
[ECO "B51"]
[WhiteElo "2301"]
[BlackElo "2582"]
[Annotator "TA"]
[PlyCount "180"]
[EventDate "2024.09.26"]
[EventType "team-tourn"]
[EventCountry "ROU"]
[SourceTitle "playchess.com"]
[Source "ChessBase"]
[SourceQuality "1"]
[TimeControl "40/5400+30:1800+30"]

{[%evp 9,180,20,22,28,26,26,25,25,28,22,33,21,25,23,18,33,29,20,17,9,37,0,0,0,0,0,0,-24,-10,-17,-25,-23,-17,-23,-41,-8,-14,-25,-14,-25,30,27,17,17,93,-85,-97,-92,-101,-102,-91,-103,-97,-89,-87,-91,-141,-142,-41,-54,-47,-34,-21,-67,-45,-59,-70,-104,-89,-95,-76,-189,-106,-100,-105,-126,-79,-76,-77,-75,-24,-104,-77,-90,-98,-97,-98,-198,-14,-14,-13,-255,-255,-256,-8,-21,-21,-21,-13,-13,-8,-8,-8,-8,-8,-8,-8,-8,-8,-8,-8,-8,-8,-8,-8,-8,-8,-8,-8,-8,-8,-8,-8,-8,-8,-8,-8,-8,-8,-8,-8,-8,-8,-8,-8,-8,-8,-8,-8,-8,-8,-8,-8,-8,-8,-8,-8,-8,-8,-8,-8,-8,-8,-8,-8,-8,-8,-8,-8,-8,-8,-8,-8,-8,-8,-8,-8,-8,-8,-8,-8,-18,0]} 1. e4 {[%emt 0:00:05]} c5 {[%emt 0:00:05]} 2. Nf3 {[%emt 0:00:10]} d6 {[%emt 0:00:06]} 3. Bb5+ {[%emt 0:00:32]} Nd7 {[%emt 0:00:07]} 4. a4 {[%emt 0:00:53][%cal Ba2a4,Ba4a5][%mdl 32]} Ngf6 {[%emt 0:00:20]} 5. Nc3 {[%emt 0:00:07]} g6 {[%emt 0:01:21]} 6. a5 {[%emt 0:00:58]} Bg7 {[%emt 0:00:06]} 7. O-O {[%emt 0:02:43]} O-O {[%emt 0:00:07]} 8. Re1 {[%emt 0:09:48] White has an edge.} a6 {[%emt 0:02:32]} 9. Bf1 {[%emt 0:00:31]} b5 {[%emt 0:05:04]} 10. axb6 {[%emt 0:00:49]} Nxb6 {[%emt 0:01:00]} 11. d3 {[%emt 0:05:08]} a5 {[%emt 0:02:18]} 12. Bg5 {[%emt 0:07:38]} h6 {[%emt 0:01:36]} 13. Bd2 {[%emt 0:01:04]} a4 {[%emt 0:00:20]} 14. h3 {[%emt 0:17:46]} Bd7 {[%emt 0:06:14]} 15. Qc1 {[%emt 0:12:47][%cal Oe4e5]} Kh7 $1 {[%emt 0:01:13]} 16. Nd1 {[%emt 0:00:11]} Ne8 {[%emt 0:11:31]} 17. c3 {[%emt 0:03:34]} e5 {[%emt 0:01:40]} 18. Nh2 {[%emt 0:00:49]} f5 {[%emt 0:03:14]} 19. f4 {[%emt 0:03:47]} exf4 {[%emt 0:20:45]} 20. Bxf4 {[%emt 0:02:22]} fxe4 {[%emt 0:02:15]} 21. dxe4 {[%emt 0:02:27]} Qh4 {[%emt 0:00:22][%csl LRe1,LRf4] Prevents Nf2} 22. g3 {[%emt 0:01:38]} Qe7 {[%emt 0:00:52]} 23. Ne3 $1 {[%emt 0:02:13] Repels Nd5} Qf7 {[%emt 0:10:30] Strongly threatening ...g5.} (23... Qxe4 24. Bg2 Qd3 25. Neg4 $16) 24. h4 {[%emt 0:15:29] [#]} g5 {[%emt 0:12:16]} 25. hxg5 $11 {[%emt 0:00:06]} hxg5 {[%emt 0:00:06] [#]} 26. Nf3 $1 {[%emt 0:00:26]} Bh6 {[%emt 0:00:08] [#]} 27. Bxg5 {[%emt 0:03:11] White is more active.} Qxf3 $17 {[%emt 0:06:54]} 28. Bxh6 {[%emt 0:00:04]} Qxg3+ {[%emt 0:00:47]} 29. Ng2 {[%emt 0:00:32]} Qf2+ {[%emt 0:04:07]} 30. Kh1 {[%emt 0:00:50]} Rf3 {[%emt 0:00:32][%cal Rf3h3]} 31. Re3 {[%emt 0:00:08]} Nf6 $1 {[%emt 0:00:56] aiming for ...Rg8.} (31... Qxf1+ 32. Qxf1 Rxf1+ 33. Rxf1 Kxh6 34. Rg3 $18) 32. Rxf3 {[%emt 0:05:42]} Qxf3 $40 {[%emt 0:00:06][%mdl 128] Black goes for the king.} 33. Kg1 {[%emt 0:00:21]} Nxe4 {[%emt 0:04:48]} (33... Qxe4 $2 {perishes.} 34. Qg5 Rg8 (34... Qg6 $2 35. Bd3 $18) 35. Qxf6 $18) (33... Ng4 $1 $17 34. Qf4 Qh3) 34. Qf4 $15 {[%emt 0:00:57]} Qxf4 {[%emt 0:00:38]} 35. Bxf4 {[%emt 0:00:03]} Bc6 {[%emt 0:02:25]} 36. Rd1 {[%emt 0:00:56]} (36. Bd3 $11 {should be considered.}) 36... d5 {[%emt 0:00:25]} 37. Bd3 {[%emt 0:00:41]} Nc4 {[%emt 0:00:32]} 38. Bxc4 {[%emt 0:01:29]} dxc4 {[%emt 0:00:02]} 39. Ne3 {[%emt 0:00:06][%cal Od1f1]} Rf8 {[%emt 0:01:07]} 40. Bd6 {[%emt 0:00:00]} (40. Bc7 $17) 40... Rf6 {[%emt 0:00:00]} (40... Rf7 $1 $19 41. Be5 Ng5) 41. Be5 $17 {[%emt 0:03:23]} Re6 {[%emt 0:11:17]} 42. Bf4 {[%emt 0:06:41] [#]} a3 {[%emt 0:10:55]} 43. bxa3 {[%emt 0:01:15]} Nxc3 {[%emt 0:00:08]} 44. Rd2 {[%emt 0:02:30][%cal Od2c2]} Rg6+ {[%emt 0:04:49]} (44... Re4 $17 45. Rh2+ Kg8 46. Rg2+ Kf7) 45. Kh2 {[%emt 0:00:24]} (45. Kf1 $11 {keeps the balance.}) 45... Ne4 {[%emt 0:01:20]} 46. Rg2 {[%emt 0:03:11]} c3 {[%emt 0:01:36]} 47. Rxg6 {[%emt 0:01:28]} Kxg6 {[%emt 0:00:01][%mdl 4096] Endgame. KBN-KBN} 48. Kg2 {[%emt 0:00:22] [#]} (48. Be5 $17 {was necessary.}) 48... Kf6 $2 {[%emt 0:03:30]} ({Black should play} 48... Nd2+ $1 $19 49. Kf2 Be4) 49. Kf3 $11 {[%emt 0:00:31]} Ke6 {[%emt 0:00:01] White must now prevent ...Nd2+.} 50. a4 $2 {[%emt 0:01:53]} Nd2+ $19 {[%emt 0:01:33]} 51. Ke2 {[%emt 0:00:08]} c4 {[%emt 0:00:36]} ({Worse is} 51... Bxa4 52. Kd3 $11) (51... Be4 $1 $19 {And now ...Nb3 would win.} 52. Kd1 Nb3) 52. Nxc4 {[%emt 0:01:23] The position is equal.} Nxc4 {[%emt 0:00:07]} 53. Kd3 {[%emt 0:00:02][%csl LRc3,LRc4] Wards off Be4+} Nb6 {[%emt 0:00:18]} 54. Bh6 {[%emt 0:02:29]} Nxa4 {[%emt 0:01:12]} 55. Bg7 {[%emt 0:00:07]} Bb5+ {[%emt 0:00:32]} (55... Kd6 56. Bxc3 Bb5+ 57. Kd2 $19) 56. Kc2 {[%emt 0:00:10]} Kd5 {[%emt 0:00:13] Hoping for ...Kc4.} 57. Bxc3 {[%emt 0:00:05]} Nc5 {[%emt 0:00:05]} 58. Bg7 $1 {[%emt 0:01:03]} Ne4 {[%emt 0:00:33]} 59. Kb3 {[%emt 0:01:04]} Kc5 {[%emt 0:00:03]} 60. Bf8+ {[%emt 0:00:06]} Kb6 {[%emt 0:00:03]} 61. Be7 {[%emt 0:00:32]} Be2 {[%emt 0:00:35]} 62. Kb4 {[%emt 0:00:50]} Kc6 {[%emt 0:00:06]} 63. Bf8 {[%emt 0:00:26]} Kd5 {[%emt 0:00:13]} 64. Bg7 {[%emt 0:00:22]} Nc5 {[%emt 0:00:43]} 65. Bf8 {[%emt 0:01:08]} Ne6 {[%emt 0:00:08]} 66. Bh6 {[%emt 0:00:22]} Kd4 {[%emt 0:00:30]} 67. Bc1 {[%emt 0:00:19]} Nc7 {[%emt 0:00:57]} 68. Bb2+ {[%emt 0:00:06]} Kd5 {[%emt 0:00:05]} 69. Bg7 {[%emt 0:00:16]} Bf1 {[%emt 0:00:26]} 70. Bh6 {[%emt 0:00:13]} Bd3 {[%emt 0:01:35]} 71. Bg7 $1 {[%emt 0:00:06]} Bc4 {[%emt 0:00:07]} 72. Bh6 {[%emt 0:00:49]} Kd4 {[%emt 0:00:27]} 73. Bg7+ {[%emt 0:00:09]} Kd3 {[%emt 0:00:04]} 74. Bh6 {[%emt 0:01:00]} Ne6 {[%emt 0:00:40]} 75. Bc1 {[%emt 0:00:13]} Kd4 {[%emt 0:00:36]} 76. Bb2+ {[%emt 0:00:05]} Kd5 {[%emt 0:00:05]} 77. Bf6 {[%emt 0:00:22]} Nc5 {[%emt 0:01:10]} 78. Bg7 {[%emt 0:00:45]} Nd3+ {[%emt 0:00:39]} 79. Kc3 {[%emt 0:00:06]} Bb5 {[%emt 0:00:03]} 80. Bf8 {[%emt 0:00:06]} Ke4 {[%emt 0:00:08]} 81. Bg7 {[%emt 0:00:16]} Ba6 {[%emt 0:00:14]} 82. Bf8 {[%emt 0:00:19]} Nf4 {[%emt 0:00:06]} 83. Bh6 {[%emt 0:01:10]} Nd5+ {[%emt 0:00:06]} 84. Kd2 {[%emt 0:00:03]} Bb5 {[%emt 0:00:44]} 85. Bg7 {[%emt 0:00:20]} Ba4 {[%emt 0:00:38]} 86. Bh6 {[%emt 0:00:15]} Ne7 {[%emt 0:00:22]} 87. Bg7 {[%emt 0:00:32]} Nf5 {[%emt 0:00:05]} 88. Bf6 {[%emt 0:00:19]} Ne3 {[%emt 0:00:37]} 89. Bg7 {[%emt 0:00:22]} Bb5 {[%emt 0:00:08]} 90. Bh6 {[%emt 0:01:20]} Nd5 {[%emt 0:00:06] Weighted Error Value: White=0.20 (precise) /Black=0.22 (precise) .  Loses game:     	White=1     	---        Missed win:     	---       	Black=2      Mistake:       	White=5     	Black=5      Inaccurate:     	White=2     	Black=1      OK:         	White=26    	Black=23     Best:        	White=13    	Black=6      Strong:       	White=4     	Black=2} 1/2-1/2